fUST/lending_fUST_20250903
["ID","MTS","AMOUNT","RATE_DAILY","PERIOD"]
[383111758,1756851033526,-480.0,0.00013698,2]
[383111759,1756851033536,-480.0,0.00013698,2]
[383111761,1756851033545,-530.0,0.00013698,2]
[383111763,1756851033555,-480.0,0.00013698,2]
[383111765,1756851033564,-480.0,0.00013698,2]
[383111768,1756851033574,-503.25021848,0.00013698,2]
[383111769,1756851033584,-480.0,0.00013698,2]
[383111772,1756851033593,-480.0,0.00013698,2]
[383111773,1756851033603,-480.0,0.00013698,2]
[383111775,1756851033613,-480.0,0.00013698,2]
[383111777,1756851033624,-480.0,0.00013698,2]
[383111779,1756851033634,-480.0,0.00013698,2]
[383111781,1756851033643,-480.0,0.00013698,2]
[383111782,1756851033653,-547.55,0.00013698,2]
[383111783,1756851033663,-480.0,0.00013698,2]
[383111785,1756851033673,-480.0,0.00013698,2]
[383111787,1756851033682,-480.0,0.00013698,2]
[383111789,1756851033691,-480.0,0.00013698,2]
[383111791,1756851033701,-480.0,0.00013698,2]
[383111793,1756851033710,-480.0,0.00013698,2]
[383111795,1756851033720,-480.0,0.00013698,2]
[383111797,1756851033730,-480.0,0.00013698,2]
[383111799,1756851033740,-480.0,0.00013698,2]
[383111801,1756851033750,-480.0,0.00013698,2]
[383111803,1756851033761,-420.0,0.00013698,2]
[383111805,1756851033770,-480.0,0.00013698,2]
[383111807,1756851033780,-480.0,0.00013698,2]
[383111809,1756851033790,-480.0,0.00013698,2]
[383111811,1756851033799,-480.0,0.00013698,2]
[383111813,1756851033813,-480.0,0.00013698,2]
[383111815,1756851033822,-480.0,0.00013698,2]
[383111817,1756851033832,-480.0,0.00013698,2]
[383111819,1756851033842,-480.0,0.00013698,2]
[383111821,1756851033853,-480.0,0.00013698,2]
[383111823,1756851033862,-480.0,0.00013698,2]
[383111825,1756851033872,-273.36889784,0.00013698,2]
[383111827,1756851033882,-480.0,0.00013698,2]
[383111829,1756851033895,-480.0,0.00013698,2]
[383111831,1756851033904,-480.0,0.00013698,2]
[383111833,1756851033914,-480.0,0.00013698,2]
[383111835,1756851033923,-480.0,0.00013698,2]
[383111836,1756851033933,-710.04,0.00013698,2]
[383111837,1756851033943,-481.02,0.00013698,2]
[383111838,1756851033953,-480.0,0.00013698,2]
[383111839,1756851033962,-480.0,0.00013698,2]
[383111840,1756851033972,-480.0,0.00013698,2]
[383111841,1756851033982,-480.0,0.00013698,2]
[383111842,1756851033992,-480.0,0.00013698,2]
[383111843,1756851034001,-480.0,0.00013698,2]
[383111844,1756851034011,-480.0,0.00013698,2]
[383111845,1756851034021,-480.0,0.00013698,2]
[383111846,1756851034030,-324.62794953,0.00013698,2]
[383111847,1756851034043,-155.37205047,0.00013698,2]
[383111848,1756851034053,-480.0,0.00013698,2]
[383111849,1756851034063,-897.92,0.00013698,2]
[383111850,1756851034073,-480.0,0.00013698,2]
[383111851,1756851034084,-480.0,0.00013698,2]
[383111852,1756851034094,-480.0,0.00013698,2]
[383111853,1756851034104,-480.0,0.00013698,2]
[383111854,1756851034114,-480.0,0.00013698,2]
[383111855,1756851034125,-1293.36,0.00013698,2]
[383111856,1756851034135,-480.0,0.00013698,2]
[383111857,1756851034145,-1025.11,0.00013698,2]
[383111858,1756851034155,-480.0,0.00013698,2]
[383111859,1756851034165,-480.0,0.00013698,2]
[383111860,1756851034174,-480.0,0.00013698,2]
[383111861,1756851034185,-1716.48,0.00013698,2]
[383111862,1756851034195,-480.0,0.00013698,2]
[383111863,1756851034206,-480.0,0.00013698,2]
[383111864,1756851034215,-480.0,0.00013698,2]
[383111865,1756851034226,-480.0,0.00013698,2]
[383111866,1756851034236,-2465.23,0.00013698,2]
[383111867,1756851034246,-480.0,0.00013698,2]
[383111868,1756851034256,-885.4,0.00013698,2]
[383111869,1756851034266,-480.0,0.00013698,2]
[383111870,1756851034276,-1538.37,0.00013698,2]
[383111871,1756851034286,-507.5,0.00013698,2]
[383111872,1756851034297,-480.0,0.00013698,2]
[383111873,1756851034307,-480.0,0.00013698,2]
[383111874,1756851034317,-765.41,0.00013698,2]
[383111875,1756851034327,-480.0,0.00013698,2]
[383111876,1756851034336,-480.0,0.00013698,2]
[383111877,1756851034346,-415.8470589,0.00013698,2]
[383111878,1756851034355,-707.13,0.00013698,2]
[383111879,1756851034365,-480.0,0.00013698,2]
[383111880,1756851034375,-480.0,0.00013698,2]
[383111881,1756851034385,-480.0,0.00013698,2]
[383111882,1756851034395,-238.18,0.00013698,2]
[383111883,1756851034404,-480.0,0.00013698,2]
[383111884,1756851034414,-480.0,0.00013698,2]
[383111885,1756851034424,-754.71,0.00013698,2]
[383111886,1756851034433,-230.72775952,0.00013698,2]
[383111887,1756851034443,-480.0,0.00013698,2]
[383111888,1756851034453,-301.09737043,0.00013698,2]
[383111889,1756851034463,-480.0,0.00013698,2]
[383111890,1756851034473,-480.0,0.00013698,2]
[383111891,1756851034482,-480.0,0.00013698,2]
[383111892,1756851034492,-480.0,0.00013698,2]
[383111893,1756851034502,-480.0,0.00013698,2]
[383111894,1756851034512,-374.34833119,0.00013698,2]
[383111895,1756851034522,-334.42370012,0.00013698,2]
[383111896,1756851034532,-480.0,0.00013698,2]
[383111897,1756851034541,-480.0,0.00013698,2]
[383111898,1756851034551,-480.0,0.00013698,2]
[383111899,1756851034560,-20.10286826,0.00013698,2]
[383111900,1756851034572,-459.89713174,0.00013698,2]
[383111901,1756851034582,-1131.1,0.00013698,2]
[383111902,1756851034591,-205.78421904,0.00013698,2]
[383111903,1756851034603,-440.0,0.00013698,2]
[383112208,1756851038251,-835.35578096,0.00013698,2]
[383112209,1756851038261,-480.0,0.00013698,2]
[383112210,1756851038272,-480.0,0.00013698,2]
[383112211,1756851038281,-480.0,0.00013698,2]
[383112212,1756851038290,-480.0,0.00013698,2]
[383112213,1756851038300,-307.04,0.00013698,2]
[383112214,1756851038309,-237.30421904,0.00013698,2]
[383112218,1756851038359,-242.69578096,0.00013698,2]
[383112229,1756851038505,-1654.76,0.00013698,2]
[383112232,1756851038515,-480.0,0.00013698,2]
[383112234,1756851038524,-1377.75,0.00013698,2]
[383112236,1756851038533,-655.22,0.00013698,2]
[383112238,1756851038543,-480.0,0.00013698,2]
[383112240,1756851038552,-480.0,0.00013698,2]
[383112242,1756851038562,-480.0,0.00013698,2]
[383112244,1756851038572,-500.0,0.00013698,2]
[383112245,1756851038581,-880.160887,0.00013699,2]
[383112247,1756851038590,-975.0,0.00013926,2]
[383112249,1756851038600,-2153.0,0.00013926,2]
[383112251,1756851038610,-632.0,0.00013926,2]
[383112253,1756851038621,-480.0,0.00013971,2]
[383112256,1756851038631,-480.0,0.00013971,2]
[383112258,1756851038640,-480.0,0.00013971,2]
[383112260,1756851038650,-480.0,0.00013971,2]
[383112262,1756851038660,-480.0,0.00013971,2]
[383112264,1756851038669,-3112.94973204,0.00013972,2]
[383112282,1756851038845,-983.43040475,0.00013972,2]
[383112285,1756851038855,-480.0,0.00013972,2]
[383112286,1756851038864,-328.44,0.00013972,2]
[383112289,1756851038874,-461.2,0.00013972,2]
[383112290,1756851038884,-493.6,0.00013972,2]
[383112292,1756851038895,-480.0,0.00013972,2]
[383112294,1756851038904,-789.83,0.00013972,2]
[383112296,1756851038914,-236.62,0.00013972,2]
[383112298,1756851038923,-198.0,0.00013972,2]
[383112300,1756851038933,-198.0,0.00013972,2]
[383112302,1756851038944,-198.0,0.00013972,2]
[383112304,1756851038953,-244.4,0.00013972,2]
[383112306,1756851038963,-255.04,0.00013972,2]
[383112308,1756851038973,-480.0,0.00013972,2]
[383112310,1756851038982,-480.0,0.00013972,2]
[383112312,1756851038993,-329.88,0.00013972,2]
[383112313,1756851039003,-480.0,0.00013972,2]
[383112314,1756851039014,-480.0,0.00013972,2]
[383112316,1756851039024,-364.65884881,0.00013972,2]
[383112502,1756851043378,-480.0,0.00013698,2]
[383112503,1756851043388,-354.23,0.00013698,2]
[383112504,1756851043399,-67.42115119,0.00013972,2]
[383112505,1756851043410,-247.00210216,0.00013972,2]
[383112506,1756851043420,-480.0,0.00013972,2]
[383112507,1756851043429,-480.0,0.00013972,2]
[383112508,1756851043442,-480.0,0.00013972,2]
[383112509,1756851043452,-185.31,0.00013972,2]
[383112510,1756851043462,-480.0,0.00013972,2]
[383112511,1756851043472,-298.24,0.00013972,2]
[383112512,1756851043482,-442.61,0.00013972,2]
[383112513,1756851043492,-480.0,0.00013972,2]
[383112514,1756851043502,-480.0,0.00013972,2]
[383112515,1756851043511,-480.0,0.00013972,2]
[383112516,1756851043522,-480.0,0.00013972,2]
[383112517,1756851043532,-480.0,0.00013972,2]
[383112518,1756851043542,-480.0,0.00013972,2]
[383112519,1756851043552,-480.0,0.00013972,2]
[383112520,1756851043561,-710.04,0.00013972,2]
[383112521,1756851043571,-481.02,0.00013972,2]
[383112522,1756851043581,-480.0,0.00013972,2]
[383112524,1756851043591,-480.0,0.00013972,2]
[383112525,1756851043600,-480.0,0.00013972,2]
[383112526,1756851043609,-480.0,0.00013972,2]
[383112527,1756851043619,-198.59,0.00013972,2]
[383112528,1756851043628,-480.0,0.00013972,2]
[383112529,1756851043639,-480.0,0.00013972,2]
[383112530,1756851043649,-480.0,0.00013972,2]
[383112531,1756851043659,-897.92,0.00013972,2]
[383112532,1756851043668,-480.0,0.00013972,2]
[383112533,1756851043678,-480.0,0.00013972,2]
[383112534,1756851043688,-480.0,0.00013972,2]
[383112535,1756851043698,-480.0,0.00013972,2]
[383112536,1756851043707,-480.0,0.00013972,2]
[383112537,1756851043717,-1293.36,0.00013972,2]
[383112538,1756851043726,-1025.11,0.00013972,2]
[383112539,1756851043737,-480.0,0.00013972,2]
[383112540,1756851043746,-480.0,0.00013972,2]
[383112541,1756851043756,-480.0,0.00013972,2]
[383112542,1756851043766,-1716.48,0.00013972,2]
[383112543,1756851043776,-480.0,0.00013972,2]
[383112544,1756851043786,-480.0,0.00013972,2]
[383112545,1756851043795,-480.0,0.00013972,2]
[383112546,1756851043807,-480.0,0.00013972,2]
[383112547,1756851043816,-2465.23,0.00013972,2]
[383112548,1756851043826,-480.0,0.00013972,2]
[383112549,1756851043835,-885.4,0.00013972,2]
[383112550,1756851043847,-480.0,0.00013972,2]
[383112551,1756851043856,-1538.37,0.00013972,2]
[383112552,1756851043866,-507.5,0.00013972,2]
[383112553,1756851043876,-480.0,0.00013972,2]
[383112554,1756851043886,-484.7145869,0.00013972,2]
[383112555,1756851043896,-765.41,0.00013972,2]
[383112556,1756851043906,-480.0,0.00013972,2]
[383112557,1756851043916,-480.0,0.00013972,2]
[383112558,1756851043926,-707.13,0.00013972,2]
[383112559,1756851043939,-480.0,0.00013972,2]
[383112560,1756851043950,-480.0,0.00013972,2]
[383112561,1756851043960,-480.0,0.00013972,2]
[383112562,1756851043969,-480.0,0.00013972,2]
[383112563,1756851043979,-480.0,0.00013972,2]
[383112564,1756851043988,-754.71,0.00013972,2]
[383112565,1756851043998,-480.0,0.00013972,2]
[383112566,1756851044007,-480.0,0.00013972,2]
[383112567,1756851044017,-480.0,0.00013972,2]
[383112568,1756851044027,-480.0,0.00013972,2]
[383112569,1756851044037,-480.0,0.00013972,2]
[383112570,1756851044047,-350.74,0.00013972,2]
[383112571,1756851044057,-1131.1,0.00013972,2]
[383112572,1756851044067,-480.0,0.00013972,2]
[383112573,1756851044076,-1481.14,0.00013972,2]
[383112574,1756851044086,-480.0,0.00013972,2]
[383112575,1756851044096,-489.58,0.00013972,2]
[383112576,1756851044106,-500.0,0.00013972,2]
[383112577,1756851044115,-1654.76,0.00013972,2]
[383112578,1756851044125,-480.0,0.00013972,2]
[383112579,1756851044135,-1377.75,0.00013972,2]
[383112580,1756851044144,-655.22,0.00013972,2]
[383112581,1756851044154,-480.0,0.00013972,2]
[383112582,1756851044163,-480.0,0.00013972,2]
[383112583,1756851044173,-480.0,0.00013972,2]
[383112584,1756851044183,-500.0,0.00013972,2]
[383112585,1756851044192,-500.0,0.00013973,2]
[383112586,1756851044202,-500.0,0.00013973,2]
[383112587,1756851044212,-43302.84435374,0.00013978,2]
[383112640,1756851640103,255.6,0.00025,30]
[383112641,1756851838040,171.76800282,0.00024822,30]
[383112653,1756852043091,-1852.10998731,0.00013598,2]
[383112654,1756852043115,-1200.0,0.00013697,2]
[383112655,1756852043137,-300.0,0.00013697,2]
[383112656,1756852043160,-724.01,0.00013698,2]
[383112657,1756852043181,-480.0,0.00013698,2]
[383112658,1756852043202,-480.0,0.00013698,2]
[383112659,1756852043222,-480.0,0.00013698,2]
[383112660,1756852043243,-480.0,0.00013698,2]
[383112661,1756852043263,-478.23,0.00013698,2]
[383112662,1756852043283,-480.0,0.00013698,2]
[383112663,1756852043302,-480.0,0.00013698,2]
[383112664,1756852043322,-480.0,0.00013698,2]
[383112665,1756852043343,-480.0,0.00013698,2]
[383112666,1756852043363,-480.0,0.00013698,2]
[383112667,1756852043383,-480.0,0.00013698,2]
[383112668,1756852043404,-480.0,0.00013698,2]
[383112669,1756852043425,-480.0,0.00013698,2]
[383112670,1756852043446,-480.0,0.00013698,2]
[383112671,1756852043470,-480.0,0.00013698,2]
[383112672,1756852043490,-480.0,0.00013698,2]
[383112673,1756852043510,-573.31,0.00013698,2]
[383112674,1756852043530,-480.0,0.00013698,2]
[383112675,1756852043554,-480.0,0.00013698,2]
[383112676,1756852043573,-480.0,0.00013698,2]
[383112677,1756852043593,-480.0,0.00013698,2]
[383112678,1756852043612,-395.05,0.00013698,2]
[383112679,1756852043632,-480.0,0.00013698,2]
[383112680,1756852043652,-480.0,0.00013698,2]
[383112681,1756852043674,-480.0,0.00013698,2]
[383112682,1756852043694,-480.0,0.00013698,2]
[383112683,1756852043717,-480.0,0.00013698,2]
[383112684,1756852043739,-480.0,0.00013698,2]
[383112685,1756852043760,-564.47051217,0.00013698,2]
[383112686,1756852043782,-1591.6,0.00013698,2]
[383112687,1756852043803,-480.0,0.00013698,2]
[383112688,1756852043824,-480.0,0.00013698,2]
[383112689,1756852043846,-480.0,0.00013698,2]
[383112690,1756852043867,-480.0,0.00013698,2]
[383112691,1756852043888,-480.0,0.00013698,2]
[383112692,1756852043910,-480.0,0.00013698,2]
[383112693,1756852043929,-480.0,0.00013698,2]
[383112694,1756852043949,-520.0,0.00013698,2]
[383112695,1756852043970,-866.25,0.00013698,2]
[383112696,1756852043990,-823.1,0.00013698,2]
[383112697,1756852044012,-480.0,0.00013698,2]
[383112698,1756852044031,-443.41,0.00013698,2]
[383112699,1756852044052,-480.0,0.00013698,2]
[383112700,1756852044074,-480.0,0.00013698,2]
[383112701,1756852044095,-480.0,0.00013698,2]
[383112702,1756852044116,-480.0,0.00013698,2]
[383112703,1756852044136,-480.0,0.00013698,2]
[383112704,1756852044159,-1185.58,0.00013698,2]
[383112705,1756852044181,-480.0,0.00013698,2]
[383112706,1756852044202,-480.0,0.00013698,2]
[383112707,1756852044223,-480.0,0.00013698,2]
[383112708,1756852044243,-480.0,0.00013698,2]
[383112709,1756852044264,-480.0,0.00013698,2]
[383112710,1756852044283,-574.31,0.00013698,2]
[383112711,1756852044306,-480.0,0.00013698,2]
[383112712,1756852044326,-480.0,0.00013698,2]
[383112713,1756852044350,-480.0,0.00013698,2]
[383112714,1756852044370,-480.0,0.00013698,2]
[383112715,1756852044391,-480.0,0.00013698,2]
[383112716,1756852044411,-461.33,0.00013698,2]
[383112717,1756852044433,-480.0,0.00013698,2]
[383112718,1756852044456,-701.62,0.00013698,2]
[383112719,1756852044482,-480.0,0.00013698,2]
[383112720,1756852044504,-480.0,0.00013698,2]
[383112721,1756852044525,-480.0,0.00013698,2]
[383112722,1756852044547,-480.0,0.00013698,2]
[383112723,1756852044568,-1518.32,0.00013698,2]
[383112724,1756852044589,-480.0,0.00013698,2]
[383112725,1756852044610,-291.85,0.00013698,2]
[383112726,1756852044631,-480.0,0.00013698,2]
[383112727,1756852044651,-480.0,0.00013698,2]
[383112728,1756852044672,-1590.3,0.00013698,2]
[383112729,1756852044694,-480.0,0.00013698,2]
[383112730,1756852044714,-480.0,0.00013698,2]
[383112731,1756852044734,-480.0,0.00013698,2]
[383112732,1756852044755,-691.82,0.00013698,2]
[383112733,1756852044775,-480.0,0.00013698,2]
[383112734,1756852044795,-480.0,0.00013698,2]
[383112735,1756852044816,-1067.33,0.00013698,2]
[383112736,1756852044840,-1387.67,0.00013698,2]
[383112737,1756852044860,-480.0,0.00013698,2]
[383112738,1756852044881,-480.0,0.00013698,2]
[383112739,1756852044903,-480.0,0.00013698,2]
[383112740,1756852044924,-1375.86,0.00013698,2]
[383112741,1756852044945,-480.0,0.00013698,2]
[383112742,1756852044965,-480.0,0.00013698,2]
[383112743,1756852044986,-480.0,0.00013698,2]
[383112744,1756852045006,-480.0,0.00013698,2]
[383112745,1756852045026,-480.0,0.00013698,2]
[383112746,1756852045048,-480.0,0.00013698,2]
[383112747,1756852045069,-480.0,0.00013698,2]
[383112748,1756852045090,-687.74,0.00013698,2]
[383112749,1756852045114,-2420.73,0.00013698,2]
[383112750,1756852045136,-480.0,0.00013698,2]
[383112751,1756852045161,-480.0,0.00013698,2]
[383112752,1756852045183,-620.69,0.00013698,2]
[383112753,1756852045203,-480.0,0.00013698,2]
[383112754,1756852045225,-480.0,0.00013698,2]
[383112755,1756852045245,-480.0,0.00013698,2]
[383112756,1756852045265,-480.0,0.00013698,2]
[383112757,1756852045285,-480.0,0.00013698,2]
[383112758,1756852045305,-480.0,0.00013698,2]
[383112759,1756852045324,-480.0,0.00013698,2]
[383112760,1756852045345,-480.0,0.00013698,2]
[383112761,1756852045365,-500.0,0.00013698,2]
[383112762,1756852045386,-836.152842,0.00013699,2]
[383112763,1756852045407,-2000.0,0.00013781,2]
[383112764,1756852045429,-2000.0,0.00013781,2]
[383112765,1756852045450,-2000.0,0.00013781,2]
[383112766,1756852045475,-2000.0,0.00013784,2]
[383112767,1756852045495,-2000.0,0.00013792,2]
[383112768,1756852045520,-500.0,0.00013971,2]
[383112769,1756852045544,-500.0,0.00013971,2]
[383112770,1756852045568,-500.0,0.00013971,2]
[383112771,1756852045592,-500.0,0.00013971,2]
[383112772,1756852045615,-500.0,0.00013971,2]
[383112773,1756852045638,-193.73378721,0.00013971,2]
[383112774,1756852045658,-480.0,0.00013971,2]
[383112775,1756852045682,-480.0,0.00013971,2]
[383112776,1756852045702,-939.68,0.00013971,2]
[383112777,1756852045723,-480.0,0.00013971,2]
[383112778,1756852045745,-694.35,0.00013971,2]
[383112779,1756852045767,-405.43790405,0.00013971,2]
[383112780,1756852045787,-480.0,0.00013971,2]
[383112781,1756852045809,-600.62,0.00013971,2]
[383112782,1756852045829,-480.0,0.00013971,2]
[383112783,1756852045851,-480.0,0.00013971,2]
[383112784,1756852045873,-724.01,0.00013972,2]
[383112785,1756852045893,-480.0,0.00013972,2]
[383112786,1756852045915,-480.0,0.00013972,2]
[383112787,1756852045936,-480.0,0.00013972,2]
[383112788,1756852045957,-480.0,0.00013972,2]
[383112789,1756852045978,-480.0,0.00013972,2]
[383112790,1756852045999,-480.0,0.00013972,2]
[383112791,1756852046020,-480.0,0.00013972,2]
[383112792,1756852046040,-480.0,0.00013972,2]
[383112793,1756852046061,-480.0,0.00013972,2]
[383112794,1756852046082,-390.58,0.00013972,2]
[383112795,1756852046103,-500.0,0.00013972,2]
[383112796,1756852046124,-480.0,0.00013972,2]
[383112797,1756852046146,-480.0,0.00013972,2]
[383112798,1756852046172,-1591.6,0.00013972,2]
[383112799,1756852046192,-480.0,0.00013972,2]
[383112800,1756852046338,-480.0,0.00013972,2]
[383112801,1756852046361,-480.0,0.00013972,2]
[383112802,1756852046383,-480.0,0.00013972,2]
[383112803,1756852046405,-823.1,0.00013972,2]
[383112804,1756852046428,-866.25,0.00013972,2]
[383112805,1756852046449,-480.0,0.00013972,2]
[383112806,1756852046474,-480.0,0.00013972,2]
[383112807,1756852046496,-480.0,0.00013972,2]
[383112808,1756852046519,-480.0,0.00013972,2]
[383112809,1756852046543,-1185.58,0.00013972,2]
[383112810,1756852046565,-480.0,0.00013972,2]
[383112811,1756852046585,-480.0,0.00013972,2]
[383112812,1756852046609,-480.0,0.00013972,2]
[383112813,1756852046631,-480.0,0.00013972,2]
[383112814,1756852046653,-480.0,0.00013972,2]
[383112815,1756852046676,-480.0,0.00013972,2]
[383112816,1756852046698,-480.0,0.00013972,2]
[383112817,1756852046721,-517.98,0.00013972,2]
[383112818,1756852046742,-448.2470139,0.00013972,2]
[383112819,1756852046764,-1791.19506754,0.00013972,2]
[383112820,1756852046786,-701.62,0.00013972,2]
[383112821,1756852046808,-480.0,0.00013972,2]
[383112822,1756852046829,-480.0,0.00013972,2]
[383112823,1756852046851,-1518.32,0.00013972,2]
[383112824,1756852046873,-480.0,0.00013972,2]
[383112825,1756852046896,-480.0,0.00013972,2]
[383112826,1756852046919,-1098.87754888,0.00013972,2]
[383112858,1756852232705,-300.0,0.00013697,2]
[383112860,1756852232714,-221.90496278,0.00013698,2]
[383112862,1756852232724,-480.0,0.00013698,2]
[383112864,1756852232733,-480.0,0.00013698,2]
[383112865,1756852232742,-480.0,0.00013698,2]
[383112866,1756852232752,-166.81,0.00013698,2]
[383112867,1756852232762,-1458.96,0.00013698,2]
[383112868,1756852232772,-754.51,0.00013698,2]
[383112869,1756852232782,-480.0,0.00013698,2]
[383112870,1756852232791,-480.0,0.00013698,2]
[383112872,1756852232800,-900.53,0.00013698,2]
[383112873,1756852232810,-1086.78,0.00013698,2]
[383112875,1756852232819,-794.07,0.00013698,2]
[383112877,1756852232829,-480.0,0.00013698,2]
[383112879,1756852232838,-480.0,0.00013698,2]
[383112881,1756852232848,-480.0,0.00013698,2]
[383112883,1756852232857,-480.0,0.00013698,2]
[383112885,1756852232867,-480.0,0.00013698,2]
[383112887,1756852232876,-480.0,0.00013698,2]
[383112889,1756852232886,-480.0,0.00013698,2]
[383112891,1756852232895,-480.0,0.00013698,2]
[383112893,1756852232905,-480.0,0.00013698,2]
[383112895,1756852232915,-480.0,0.00013698,2]
[383112897,1756852232924,-480.0,0.00013698,2]
[383112899,1756852232933,-643.15,0.00013698,2]
[383112902,1756852232943,-480.0,0.00013698,2]
[383112904,1756852232952,-480.0,0.00013698,2]
[383112906,1756852232962,-480.0,0.00013698,2]
[383112908,1756852232971,-480.0,0.00013698,2]
[383112909,1756852232980,-665.42,0.00013698,2]
[383112912,1756852232990,-480.0,0.00013698,2]
[383112913,1756852232999,-480.0,0.00013698,2]
[383112915,1756852233008,-480.0,0.00013698,2]
[383112917,1756852233018,-1478.25,0.00013698,2]
[383112919,1756852233027,-480.0,0.00013698,2]
[383112921,1756852233036,-2319.87,0.00013698,2]
[383112923,1756852233046,-663.0,0.00013698,2]
[383112925,1756852233055,-480.0,0.00013698,2]
[383112927,1756852233065,-480.0,0.00013698,2]
[383112929,1756852233074,-480.0,0.00013698,2]
[383112931,1756852233084,-480.0,0.00013698,2]
[383112933,1756852233093,-1318.54,0.00013698,2]
[383112935,1756852233103,-1022.86,0.00013698,2]
[383112937,1756852233112,-1391.8,0.00013698,2]
[383112939,1756852233122,-659.09,0.00013698,2]
[383112941,1756852233131,-480.0,0.00013698,2]
[383112943,1756852233141,-794.345199,0.00013699,2]
[383112945,1756852233150,-480.0,0.00013791,2]
[383112947,1756852233160,-2000.0,0.00013792,2]
[383112949,1756852233169,-2000.0,0.00013792,2]
[383112951,1756852233179,-2000.0,0.00013792,2]
[383112953,1756852233188,-1914.356,0.00013792,2]
[383112955,1756852233198,-458.49315141,0.00013872,2]
[383112957,1756852233207,-480.0,0.00013971,2]
[383112959,1756852233217,-480.0,0.00013971,2]
[383112961,1756852233226,-480.0,0.00013971,2]
[383112962,1756852233236,-500.0,0.00013971,2]
[383112964,1756852233245,-385.61365105,0.00013971,2]
[383112966,1756852233254,-500.0,0.00013971,2]
[383112968,1756852233263,-500.0,0.00013971,2]
[383112970,1756852233273,-480.0,0.00013972,2]
[383112972,1756852233283,-480.0,0.00013972,2]
[383112974,1756852233293,-313.06,0.00013972,2]
[383112976,1756852233302,-1387.67,0.00013972,2]
[383112978,1756852233311,-480.0,0.00013972,2]
[383112980,1756852233321,-480.0,0.00013972,2]
[383112982,1756852233330,-480.0,0.00013972,2]
[383112984,1756852233339,-480.0,0.00013972,2]
[383112986,1756852233348,-480.0,0.00013972,2]
[383112988,1756852233358,-480.0,0.00013972,2]
[383112990,1756852233367,-480.0,0.00013972,2]
[383112992,1756852233377,-480.0,0.00013972,2]
[383112994,1756852233386,-480.0,0.00013972,2]
[383112996,1756852233395,-1458.96,0.00013972,2]
[383112998,1756852233404,-754.51,0.00013972,2]
[383113000,1756852233413,-480.0,0.00013972,2]
[383113001,1756852233422,-17.328733,0.00013972,2]
[383113002,1756852233434,-462.671267,0.00013972,2]
[383113003,1756852233443,-900.53,0.00013972,2]
[383113004,1756852233453,-1086.78,0.00013972,2]
[383113005,1756852233462,-794.07,0.00013972,2]
[383113006,1756852233472,-480.0,0.00013972,2]
[383113007,1756852233481,-163.48748895,0.00013972,2]
[383113008,1756852233491,-480.0,0.00013972,2]
[383113009,1756852233501,-480.0,0.00013972,2]